lending/lending_fUSD_20241214
["ID","MTS","AMOUNT","RATE_DAILY","PERIOD"]
[345368733,1734197445512,-500.0,0.00021095,3]
[345368734,1734197445521,-500.0,0.00021095,3]
[345368735,1734197445531,-500.0,0.00021095,3]
[345368736,1734197445539,-500.0,0.00021095,3]
[345368737,1734197445548,-163.6085303,0.00021095,3]
[345368738,1734197445557,-500.0,0.00021095,3]
[345368739,1734197445566,-424.51669599,0.00021095,3]
[345368740,1734197445576,-500.0,0.00021095,3]
[345368741,1734197445590,-500.0,0.00021095,3]
[345368742,1734197445599,-500.0,0.00021095,3]
[345368743,1734197445609,-500.0,0.00021095,3]
[345368744,1734197445619,-500.0,0.00021095,3]
[345368745,1734197445634,-500.0,0.00021095,3]
[345368746,1734197445643,-500.0,0.00021095,3]
[345368747,1734197445653,-500.0,0.00021095,3]
[345368748,1734197445663,-500.0,0.00021095,3]
[345368749,1734197445673,-500.0,0.00021095,3]
[345368750,1734197445682,-500.0,0.00021095,3]
[345368752,1734197445842,-500.0,0.00021095,3]
[345368753,1734197445852,-500.0,0.00021095,3]
[345368754,1734197445861,-500.0,0.00021095,3]
[345368755,1734197445870,-500.0,0.00021095,3]
[345368756,1734197445882,-144.76602433,0.00021095,3]
[345368757,1734197446052,-153.0,0.00018913,2]
[345368758,1734197446062,-355.23397567,0.00021095,3]
[345368759,1734197446072,-500.76252636,0.00021095,3]
[345368760,1734197446081,-500.0,0.00021095,3]
[345368761,1734197446090,-500.0,0.00021095,3]
[345368762,1734197446100,-500.0,0.00021095,3]
[345368763,1734197446109,-500.0,0.00021095,3]
[345368764,1734197446118,-500.0,0.00021095,3]
[345368765,1734197446133,-500.0,0.00021095,3]
[345368766,1734197446142,-571.19,0.00021095,3]
[345368767,1734197446151,-500.0,0.00021095,3]
[345368768,1734197446161,-500.0,0.00021095,3]
[345368769,1734197446170,-500.0,0.00021095,3]
[345368770,1734197446180,-500.0,0.00021095,3]
[345368771,1734197446189,-500.0,0.00021095,3]
[345368772,1734197446198,-500.0,0.00021095,3]
[345368773,1734197446207,-500.0,0.00021095,3]
[345368774,1734197446216,-500.0,0.00021095,3]
[345368775,1734197446226,-500.0,0.00021095,3]
[345368776,1734197446235,-500.0,0.00021095,3]
[345368777,1734197446244,-550.34,0.00021095,3]
[345368778,1734197446254,-500.0,0.00021095,3]
[345368779,1734197446263,-550.34,0.00021095,3]
[345368780,1734197446272,-550.34,0.00021095,3]
[345368781,1734197446282,-550.34,0.00021095,3]
[345368782,1734197446291,-500.0,0.00021095,3]
[345368783,1734197446300,-500.0,0.00021095,3]
[345368784,1734197446310,-500.0,0.00021095,3]
[345368785,1734197446320,-500.0,0.00021095,3]
[345368786,1734197446329,-500.0,0.00021095,3]
[345368787,1734197446339,-500.0,0.00021095,3]
[345368788,1734197446349,-500.0,0.00021095,3]
[345368789,1734197446358,-500.0,0.00021095,3]
[345368790,1734197446367,-500.0,0.00021095,3]
[345368791,1734197446382,-500.0,0.00021095,3]
[345368792,1734197446392,-500.0,0.00021095,3]
[345368793,1734197446401,-610.09,0.00021095,3]
[345368794,1734197446411,-610.09,0.00021095,3]
[345368795,1734197446423,-610.09,0.00021095,3]
[345368796,1734197446433,-150.462763,0.00021095,3]
[345368797,1734197446443,-610.09,0.00021095,3]
[345368798,1734197446451,-610.09,0.00021095,3]
[345368799,1734197446461,-500.0,0.00021095,3]
[345368800,1734197446470,-500.0,0.00021095,3]
[345368801,1734197446479,-500.0,0.00021095,3]
[345368802,1734197446489,-500.0,0.00021095,3]
[345368803,1734197446499,-500.0,0.00021095,3]
[345368804,1734197446508,-500.0,0.00021095,3]
[345368805,1734197446517,-500.0,0.00021095,3]
[345368806,1734197446526,-503.6440326,0.00021095,3]
[345368807,1734197446535,-500.0,0.00021095,3]
[345368808,1734197446544,-500.0,0.00021095,3]
[345368809,1734197446554,-500.0,0.00021095,3]
[345368810,1734197446563,-500.0,0.00021095,3]
[345368811,1734197446572,-500.0,0.00021095,3]
[345368812,1734197446585,-500.0,0.00021095,3]
[345368813,1734197446596,-500.0,0.00021095,3]
[345368814,1734197446605,-500.0,0.00021095,3]
[345368815,1734197446615,-500.0,0.00021095,3]
[345368816,1734197446628,-500.0,0.00021095,3]
[345368817,1734197446638,-500.0,0.00021095,3]
[345368818,1734197446648,-500.0,0.00021095,3]
[345368819,1734197446658,-500.0,0.00021095,3]
[345368820,1734197446668,-500.0,0.00021095,3]
[345368821,1734197446677,-500.0,0.00021095,3]
[345368822,1734197446687,-500.0,0.00021095,3]
[345368823,1734197446698,-238.3866962,0.00021095,3]
[345368824,1734197446707,-500.0,0.00021095,3]
[345368825,1734197446717,-500.0,0.00021095,3]
[345368826,1734197446727,-500.0,0.00021095,3]
[345368827,1734197446736,-500.0,0.00021095,3]
[345368828,1734197446746,-500.0,0.00021095,3]
[345368829,1734197446756,-500.0,0.00021095,3]
[345368830,1734197446765,-500.0,0.00021095,3]
[345368831,1734197446775,-500.0,0.00021095,3]
[345368832,1734197446784,-500.0,0.00021095,3]
[345368833,1734197446793,-500.0,0.00021095,3]
[345368834,1734197446802,-500.0,0.00021095,3]
[345368835,1734197446812,-500.0,0.00021095,3]
[345368836,1734197446822,-539.38787069,0.00021095,3]
[345368837,1734197446831,-500.0,0.00021095,3]
[345368838,1734197446840,-500.0,0.00021095,3]
[345368839,1734197446849,-500.0,0.00021095,3]
[345368840,1734197446859,-500.0,0.00021095,3]
[345368841,1734197446868,-116.09494895,0.00021095,3]
[345368842,1734197446884,-383.90505105,0.00021095,3]
[345368843,1734197446894,-891.05,0.00021095,3]
[345368844,1734197446904,-891.05,0.00021095,3]
[345368845,1734197446914,-891.05,0.00021095,3]
[345368846,1734197446923,-891.05,0.00021095,3]
[345368847,1734197446932,-1197.05,0.00021095,3]
[345368848,1734197446943,-425.29948863,0.00021095,3]
[345368849,1734197446967,-771.75051137,0.00021095,3]
[345368850,1734197446976,-1197.05,0.00021095,3]
[345368851,1734197446986,-1197.05,0.00021095,3]
[345368852,1734197446995,-1197.05,0.00021095,3]
[345368853,1734197447005,-500.0,0.00021095,3]
[345368854,1734197447015,-509.7051239,0.00021095,3]
[345368855,1734197447025,-500.0,0.00021095,3]
[345368856,1734197447034,-504.26676773,0.00021095,3]
[345368857,1734197447043,-500.0,0.00021095,3]
[345368858,1734197447053,-500.0,0.00021095,3]
[345368859,1734197447063,-500.0,0.00021095,3]
[345368860,1734197447072,-500.0,0.00021095,3]
[345368861,1734197447081,-500.0,0.00021095,3]
[345368862,1734197447091,-500.0,0.00021095,3]
[345368863,1734197447101,-500.0,0.00021095,3]
[345368864,1734197447111,-500.0,0.00021095,3]
[345368865,1734197447120,-634.2,0.00021095,3]
[345368866,1734197447133,-590.86,0.00021095,3]
[345368867,1734197447142,-590.86,0.00021095,3]
[345368868,1734197447152,-590.86,0.00021095,3]
[345368869,1734197447161,-500.0,0.00021095,3]
[345368870,1734197447170,-590.86,0.00021095,3]
[345368871,1734197447180,-590.86,0.00021095,3]
[345368872,1734197447189,-500.0,0.00021095,3]
[345368873,1734197447199,-500.0,0.00021095,3]
[345368874,1734197447210,-500.0,0.00021095,3]
[345368875,1734197447220,-500.0,0.00021095,3]
[345368876,1734197447232,-500.0,0.00021095,3]
[345368877,1734197447242,-500.0,0.00021095,3]
[345368878,1734197447253,-500.0,0.00021095,3]
[345368879,1734197447262,-500.0,0.00021095,3]
[345368880,1734197447271,-500.0,0.00021095,3]
[345368881,1734197447281,-500.0,0.00021095,3]
[345368882,1734197447291,-500.0,0.00021095,3]
[345368883,1734197447300,-168.247597,0.00021095,3]
[345368884,1734197447318,-153.0,0.00018913,2]
[345368885,1734197447327,-331.752403,0.00021095,3]
[345368886,1734197447339,-500.0,0.00021095,3]
[345368887,1734197447349,-500.0,0.00021095,3]
[345368888,1734197447358,-737.69,0.00021095,3]
[345368889,1734197447368,-737.69,0.00021095,3]
[345368890,1734197447380,-737.69,0.00021095,3]
[345368891,1734197447389,-737.69,0.00021095,3]
[345368892,1734197447404,-500.0,0.00021095,3]
[345368893,1734197447413,-500.0,0.00021095,3]
[345368894,1734197447422,-500.0,0.00021095,3]
[345368895,1734197447431,-500.0,0.00021095,3]
[345368896,1734197447441,-500.0,0.00021095,3]
[345368897,1734197447450,-500.0,0.00021095,3]
[345368898,1734197447459,-500.0,0.00021095,3]
[345368899,1734197447468,-500.0,0.00021095,3]
[345368900,1734197447477,-500.0,0.00021095,3]
[345368901,1734197447486,-500.0,0.00021095,3]
[345368902,1734197447495,-500.0,0.00021095,3]
[345368903,1734197447504,-240.85,0.00021095,3]
[345368904,1734197447513,-500.0,0.00021095,3]
[345368905,1734197447523,-500.0,0.00021095,3]
[345368906,1734197447532,-500.0,0.00021095,3]
[345368907,1734197447541,-500.0,0.00021095,3]
[345368908,1734197447550,-500.0,0.00021095,3]
[345368909,1734197447559,-500.0,0.00021095,3]
[345368910,1734197447568,-500.0,0.00021095,3]
[345368911,1734197447578,-500.0,0.00021095,3]
[345368912,1734197447592,-500.0,0.00021095,3]
[345368913,1734197447601,-500.0,0.00021095,3]
[345368914,1734197447611,-500.0,0.00021095,3]
[345368915,1734197447620,-500.0,0.00021095,3]
[345368916,1734197447632,-500.0,0.00021095,3]
[345368917,1734197447642,-500.0,0.00021095,3]
[345368918,1734197447652,-500.0,0.00021095,3]
[345368919,1734197447661,-500.0,0.00021095,3]
[345368920,1734197447671,-150.0,0.00021095,2]
[345368921,1734197447682,-500.0,0.00021095,3]
[345368922,1734197447691,-310.00792562,0.00021095,3]
[345368923,1734197794221,521.38,0.00010137,2]
[345368925,1734198556138,-166.66666667,0.00013499,2]
[345368926,1734198556158,-206.88973782,0.00013599,2]
[345368927,1734198556178,-205.9894376,0.00013599,2]
[345368928,1734198556198,-1790.26858754,0.00013698,2]
[345368929,1734198556219,-154.39,0.00013699,2]
[345368930,1734198556240,-174.37,0.00015387,2]
[345368931,1734198556262,-172.67,0.00015441,2]
[345368936,1734198631664,-486.87103,0.00016813,2]
[345368937,1734198631779,-34.50897,0.00016813,2]
[345368938,1734198631789,-1127.3,0.00017662,2]
[345368939,1734198631798,-45.63106,0.00019238,2]
[345368940,1734198631809,-402.73894,0.00019238,2]
[345368941,1734198631818,-236.65730444,0.00019426,2]
[345368942,1734198631843,-503.56269556,0.00019426,2]
[345368943,1734198631852,-150.0,0.00019507,2]
[345368944,1734198631861,-200.0,0.00019531,2]
[345368945,1734198631870,-176.75,0.00019541,2]
[345368946,1734198631879,-160.53730444,0.00019553,2]
[345368947,1734198631894,-139.46269556,0.00019553,2]
[345368948,1734198631904,-627.42595451,0.00019554,2]
[345368949,1734198632010,-1625.46814324,0.00019554,2]
[345368950,1734198632021,-786.64180338,0.00019554,2]
[345369078,1734198637503,-6946.88006711,0.00019554,2]
[345369079,1734198637559,-535.19478201,0.00019554,2]
[345369080,1734198637780,-2590.71924975,0.00019554,2]
[345369081,1734198637793,-250.0,0.00019622,2]
[345369082,1734198637802,-218.82,0.0001963,2]
[345369083,1734198637811,-155.81,0.00019769,30]
[345369084,1734198637821,-300.0,0.00019899,2]
[345369085,1734198637830,-3159.1338,0.000199,2]
[345369086,1734198637839,-3106.4436,0.000199,2]
[345369087,1734198637848,-2206.0475,0.000199,2]
[345369088,1734198637858,-802.7695,0.000199,2]
[345369089,1734198637867,-1856.0,0.000199,2]
[345369090,1734198637876,-960.0,0.00019914,2]
[345369091,1734198637885,-1127.3,0.00019926,2]
[345369092,1734198637895,-200.0,0.00019951,2]
[345369093,1734198637904,-1000.0,0.00019983,2]
[345369094,1734198637914,-167.67,0.00019983,2]
[345369095,1734198637925,-1000.0,0.00019999,2]
[345369096,1734198637935,-500.0,0.00019999,2]
[345369097,1734198637944,-442.97972717,0.00019999,2]
[345369098,1734198637954,-25731.0,0.0002,3]
[345369099,1734198637963,-12863.0,0.0002,3]
[345369100,1734198637975,-12863.0,0.0002,3]
[345369101,1734198637985,-12863.0,0.0002,3]
[345369102,1734198637994,-12863.0,0.0002,3]
[345369103,1734198638007,-295.969,0.0002004,2]
[345369105,1734198638016,-174.08,0.00020077,2]
[345369106,1734198638026,-154.39,0.00020091,2]
[345369107,1734198638035,-250.0,0.00020134,2]
[345369108,1734198638044,-218.82,0.00020356,2]
[345369109,1734198638053,-1095.22,0.00020358,2]
[345369110,1734198638063,-165.827,0.000205,2]
[345369111,1734198638072,-235.04,0.00020536,2]
[345369112,1734198638082,-345.61,0.00020536,2]
[345369113,1734198638091,-428.12770285,0.00020544,2]
[345369114,1734198638100,-428.12770285,0.00020565,2]
[345369115,1734198638110,-1112.31884305,0.00020601,2]
[345369116,1734198638119,-185.0,0.00020729,2]
[345369117,1734198638128,-160.71,0.0002077,2]
[345369118,1734198638137,-287.232593,0.00020893,5]
[345369119,1734198638148,-1861.989,0.000209,2]
[345369120,1734198638157,-157.73072034,0.000209,2]
[345369121,1734198638166,-287.232593,0.00020905,5]
[345369124,1734198638175,-428.12770287,0.00020908,2]
[345369127,1734198638184,-287.232593,0.0002091,5]
[345369129,1734198638194,-287.232593,0.00020916,5]
[345369131,1734198638203,-1401.03,0.0002093,2]
[345369133,1734198638212,-871.3,0.0002093,2]
[345369136,1734198638221,-287.232593,0.00020932,5]
[345369139,1734198638231,-800.0,0.00020935,2]
[345369140,1734198638241,-800.0,0.00020935,2]
[345369141,1734198638256,-800.0,0.00020935,2]
[345369142,1734198638266,-800.0,0.00020935,2]
[345369143,1734198638275,-800.0,0.00020935,2]
[345369144,1734198638284,-800.0,0.00020935,2]
[345369145,1734198638294,-287.232593,0.00020949,5]
[345369146,1734198638303,-422.25836631,0.00020951,2]
[345369147,1734198638312,-1263.0,0.00020952,2]
[345369148,1734198638322,-2005.0,0.00020952,2]
[345369149,1734198638331,-564.0,0.00020952,2]
[345369150,1734198638341,-632.0,0.00020952,2]
[345369151,1734198638350,-1895.0,0.00020952,2]
[345369152,1734198638359,-1254.0,0.00020952,2]
[345369153,1734198638369,-929.0,0.00020952,2]
[345369154,1734198638378,-817.0,0.00020952,2]
[345369155,1734198638388,-3765.0,0.00020952,2]
[345369156,1734198638396,-3630.0,0.00020952,2]
[345369157,1734198638405,-535.0,0.00020952,2]
[345369158,1734198638414,-3880.0,0.00020952,2]
[345369159,1734198638423,-150.0,0.00020952,2]
[345369160,1734198638432,-150.0,0.00020952,2]
[345369161,1734198638441,-13732.0,0.00020952,2]
[345369162,1734198638450,-150.0,0.00020952,2]
[345369163,1734198638459,-150.0,0.00020952,2]
[345369164,1734198638468,-152.14,0.00020952,2]
[345369165,1734198638477,-150.0,0.00020952,2]
[345369166,1734198638486,-1099.0,0.00020952,2]
[345369167,1734198638495,-153.246,0.00020952,2]
[345369168,1734198638512,-176.75,0.00020987,2]
[345369169,1734198638521,-150.1569955,0.0002099,2]
[345369170,1734198638531,-5482.41180918,0.00020995,2]
[345369171,1734198638540,-324.71142507,0.00020995,2]
[345369172,1734198638548,-5000.0,0.00020995,2]
[345369173,1734198638557,-1000.0,0.00021,2]
[345369174,1734198638566,-187.5,0.00021005,2]
[345369175,1734198638575,-1137.1377,0.00021067,2]
[345369176,1734198638584,-500.0,0.00021073,2]
[345369177,1734198638593,-218.82,0.00021082,2]
[345369178,1734198638602,-7319.1509347,0.00021092,2]
[345369179,1734198638611,-5945.17725,0.00021093,10]
[345369180,1734198638620,-906.3176,0.00021094,2]
[345369181,1734198638629,-500.0,0.00021095,3]
[345369182,1734198638638,-2000.0,0.00021095,2]
[345369183,1734198638647,-200.0,0.00021095,2]
[345369184,1734198638656,-500.0,0.00021095,3]
[345369185,1734198638665,-500.0,0.00021095,3]
[345369186,1734198638674,-500.0,0.00021095,3]
[345369187,1734198638683,-233.86491047,0.00021095,3]
[345369188,1734198638692,-500.0,0.00021095,3]
[345369189,1734198638702,-500.0,0.00021095,3]
[345369190,1734198638711,-500.0,0.00021095,3]
[345369191,1734198638720,-500.0,0.00021095,3]
[345369192,1734198638730,-500.0,0.00021095,3]
[345369193,1734198638739,-500.0,0.00021095,3]
[345369194,1734198638748,-500.0,0.00021095,3]
[345369195,1734198638763,-500.0,0.00021095,3]
[345369196,1734198638772,-508.62152874,0.00021095,3]
[345369197,1734198638781,-500.0,0.00021095,3]
[345369198,1734198638790,-500.0,0.00021095,3]
[345369199,1734198638799,-500.0,0.00021095,3]
[345369200,1734198638808,-500.0,0.00021095,3]
[345369201,1734198638817,-500.0,0.00021095,3]
[345369202,1734198638826,-500.0,0.00021095,3]
[345369203,1734198638836,-500.0,0.00021095,3]
[345369204,1734198638844,-500.0,0.00021095,3]
[345369205,1734198638854,-500.0,0.00021095,3]
[345369206,1734198638863,-500.0,0.00021095,3]
[345369207,1734198638873,-500.0,0.00021095,3]
[345369208,1734198638882,-500.0,0.00021095,3]
[345369209,1734198638891,-500.0,0.00021095,3]
[345369210,1734198638901,-500.0,0.00021095,3]
[345369211,1734198638910,-500.0,0.00021095,3]
[345369212,1734198638919,-500.0,0.00021095,3]
[345369213,1734198638929,-500.0,0.00021095,3]
[345369214,1734198638938,-500.0,0.00021095,3]
[345369215,1734198638948,-500.0,0.00021095,3]
[345369216,1734198638958,-500.0,0.00021095,3]
[345369217,1734198638967,-506.29008162,0.00021095,3]
[345369218,1734198638976,-500.0,0.00021095,3]
[345369219,1734198638985,-500.0,0.00021095,3]
[345369220,1734198638994,-500.0,0.00021095,3]
[345369221,1734198639008,-500.0,0.00021095,3]
[345369222,1734198639018,-500.0,0.00021095,3]
[345369223,1734198639027,-500.0,0.00021095,3]
[345369224,1734198639036,-500.0,0.00021095,3]
[345369225,1734198639045,-500.0,0.00021095,3]
[345369226,1734198639054,-500.0,0.00021095,3]
[345369227,1734198639063,-500.0,0.00021095,3]
[345369228,1734198639072,-500.0,0.00021095,3]
[345369229,1734198639081,-500.0,0.00021095,3]
[345369230,1734198639090,-500.0,0.00021095,3]
[345369231,1734198639099,-500.0,0.00021095,3]
[345369232,1734198639108,-500.0,0.00021095,3]
[345369233,1734198639118,-500.0,0.00021095,3]
[345369234,1734198639127,-500.0,0.00021095,3]
[345369235,1734198639136,-500.0,0.00021095,3]
[345369236,1734198639149,-500.0,0.00021095,3]
[345369237,1734198639159,-557.51696195,0.00021095,3]
[345369238,1734198639168,-500.0,0.00021095,3]
[345369239,1734198639177,-500.0,0.00021095,3]
[345369240,1734198639187,-500.0,0.00021095,3]
[345369241,1734198639196,-500.0,0.00021095,3]
[345369242,1734198639204,-500.0,0.00021095,3]
[345369243,1734198639213,-500.0,0.00021095,3]
[345369244,1734198639224,-500.0,0.00021095,3]
[345369245,1734198639234,-501.55068953,0.00021095,3]
[345369246,1734198639243,-500.0,0.00021095,3]
[345369247,1734198639257,-500.0,0.00021095,3]
[345369248,1734198639267,-500.0,0.00021095,3]
[345369249,1734198639277,-500.0,0.00021095,3]
[345369250,1734198639286,-500.0,0.00021095,3]
[345369251,1734198639296,-500.0,0.00021095,3]
[345369252,1734198639305,-500.0,0.00021095,3]
[345369253,1734198639314,-500.0,0.00021095,3]
[345369254,1734198639323,-500.0,0.00021095,3]
[345369255,1734198639333,-500.0,0.00021095,3]
[345369256,1734198639341,-500.0,0.00021095,3]
[345369257,1734198639351,-500.0,0.00021095,3]
[345369258,1734198639360,-500.0,0.00021095,3]
[345369259,1734198639370,-500.0,0.00021095,3]
[345369260,1734198639379,-514.14034008,0.00021095,3]
[345369261,1734198639388,-1000.0,0.00021095,2]
[345369262,1734198639397,-1000.0,0.00021095,2]
[345369263,1734198639406,-1000.0,0.00021095,2]
[345369264,1734198639415,-1000.0,0.00021095,2]
[345369265,1734198639424,-1000.0,0.00021095,2]
[345369266,1734198639433,-500.45572911,0.00021095,3]
[345369268,1734198639442,-500.0,0.00021095,3]
[345369269,1734198639451,-332.78140525,0.00021095,3]
[345369271,1734198639461,-504.71359441,0.00021095,3]
[345369273,1734198639470,-500.0,0.00021095,3]
[345369275,1734198639479,-500.0,0.00021095,3]
[345369277,1734198639488,-500.0,0.00021095,3]
[345369278,1734198639498,-500.0,0.00021095,3]
[345369279,1734198639512,-501.24618573,0.00021095,3]
[345369280,1734198639521,-500.0,0.00021095,3]
[345369281,1734198639530,-500.0,0.00021095,3]
[345369282,1734198639539,-500.0,0.00021095,3]
[345369284,1734198639549,-500.0,0.00021095,3]
[345369285,1734198639558,-500.0,0.00021095,3]
[345369286,1734198639566,-500.0,0.00021095,3]
[345369287,1734198639576,-500.0,0.00021095,3]
[345369288,1734198639585,-500.0,0.00021095,3]
[345369289,1734198639594,-500.0,0.00021095,3]
[345369290,1734198639603,-500.0,0.00021095,3]
[345369291,1734198639612,-500.0,0.00021095,3]
[345369292,1734198639621,-500.0,0.00021095,3]
[345369293,1734198639631,-500.0,0.00021095,3]
[345369294,1734198639639,-500.0,0.00021095,3]
[345369295,1734198639649,-500.0,0.00021095,3]
[345369296,1734198639658,-500.0,0.00021095,3]
[345369297,1734198639667,-151.26046623,0.00021095,3]
[345369298,1734198639836,-344.52492143,0.00021095,3]
[345369299,1734198639846,-500.0,0.00021095,3]
[345369300,1734198639856,-500.0,0.00021095,3]
[345369301,1734198639865,-500.0,0.00021095,3]
[345369302,1734198639874,-500.0,0.00021095,3]
[345369303,1734198639884,-500.0,0.00021095,3]
[345369304,1734198639893,-500.0,0.00021095,3]
[345369305,1734198639902,-500.0,0.00021095,3]
[345369306,1734198639912,-500.0,0.00021095,3]
[345369307,1734198639921,-500.0,0.00021095,3]
[345369308,1734198639930,-500.0,0.00021095,3]
[345369309,1734198639940,-500.0,0.00021095,3]
[345369310,1734198639949,-242.6539685,0.00021095,3]
[345369311,1734198639960,-500.0,0.00021095,3]
[345369312,1734198639969,-500.0,0.00021095,3]
[345369313,1734198639978,-500.0,0.00021095,3]
[345369314,1734198639987,-500.0,0.00021095,3]
[345369315,1734198639997,-500.0,0.00021095,3]
[345369316,1734198640012,-500.0,0.00021095,3]
[345369317,1734198640021,-500.0,0.00021095,3]
[345369318,1734198640030,-202.56,0.00021095,3]
[345369319,1734198640041,-500.0,0.00021095,3]
[345369320,1734198640050,-500.0,0.00021095,3]
[345369321,1734198640060,-500.0,0.00021095,3]
[345369322,1734198640069,-500.0,0.00021095,3]
[345369323,1734198640079,-444.33970608,0.00021095,3]
[345369324,1734198640088,-500.0,0.00021095,3]
[345369326,1734198640097,-500.0,0.00021095,3]
[345369328,1734198640107,-500.0,0.00021095,3]
[345369330,1734198640116,-500.0,0.00021095,3]
[345369332,1734198640125,-500.0,0.00021095,3]
[345369334,1734198640135,-265.0,0.00021095,3]
[345369336,1734198640146,-500.0,0.00021095,3]
[345369338,1734198640157,-500.0,0.00021095,3]
[345369340,1734198640165,-500.0,0.00021095,3]
[345369342,1734198640174,-500.0,0.00021095,3]
[345369344,1734198640183,-500.0,0.00021095,3]
[345369346,1734198640192,-500.0,0.00021095,3]
[345369348,1734198640200,-500.0,0.00021095,3]
[345369349,1734198640210,-500.0,0.00021095,3]
[345369351,1734198640219,-500.0,0.00021095,3]
[345369353,1734198640228,-500.0,0.00021095,3]
[345369355,1734198640237,-500.0,0.00021095,3]
[345369357,1734198640246,-500.0,0.00021095,3]
[345369359,1734198640260,-500.0,0.00021095,3]
[345369361,1734198640268,-500.0,0.00021095,3]
[345369363,1734198640277,-500.0,0.00021095,3]
[345369365,1734198640287,-500.0,0.00021095,3]
[345369367,1734198640296,-500.0,0.00021095,3]
[345369369,1734198640305,-500.0,0.00021095,3]
[345369372,1734198640314,-500.0,0.00021095,3]
[345369374,1734198640323,-500.0,0.00021095,3]
[345369375,1734198640333,-500.0,0.00021095,3]
[345369377,1734198640342,-500.0,0.00021095,3]
[345369379,1734198640352,-500.0,0.00021095,3]
[345369381,1734198640361,-500.0,0.00021095,3]
[345369383,1734198640371,-500.0,0.00021095,3]
[345369385,1734198640380,-500.0,0.00021095,3]
[345369387,1734198640389,-500.0,0.00021095,3]
[345369389,1734198640398,-500.0,0.00021095,3]
[345369391,1734198640407,-500.0,0.00021095,3]
[345369393,1734198640417,-500.0,0.00021095,3]
[345369395,1734198640426,-500.0,0.00021095,3]
[345369397,1734198640436,-500.0,0.00021095,3]
[345369399,1734198640445,-500.0,0.00021095,3]
[345369400,1734198640454,-500.0,0.00021095,3]
[345369401,1734198640464,-500.0,0.00021095,3]
[345369402,1734198640474,-500.0,0.00021095,3]
[345369403,1734198640483,-500.0,0.00021095,3]
[345369404,1734198640492,-500.0,0.00021095,3]
[345369405,1734198640502,-500.0,0.00021095,3]
[345369406,1734198640515,-500.0,0.00021095,3]
[345369407,1734198640525,-200.0,0.00021095,2]
[345369408,1734198640534,-500.0,0.00021095,3]
[345369409,1734198640544,-194.3891303,0.00021095,3]
[345369410,1734198640555,-500.0,0.00021095,3]
[345369411,1734198640564,-502.43486742,0.00021095,3]
[345369412,1734198640573,-500.0,0.00021095,3]
[345369413,1734198640584,-500.0,0.00021095,3]
[345369414,1734198640594,-500.0,0.00021095,3]
[345369415,1734198640604,-500.0,0.00021095,3]
[345369416,1734198640613,-500.0,0.00021095,3]
[345369417,1734198640622,-500.0,0.00021095,3]
[345369418,1734198640632,-500.0,0.00021095,3]
[345369419,1734198640641,-500.0,0.00021095,3]
[345369420,1734198640650,-500.0,0.00021095,3]